fUSD/lending_fUSD_20251225
["ID","MTS","AMOUNT","RATE_DAILY","PERIOD"]
[399804592,1766686248015,-175.53875056,0.00016695,2]
[399804593,1766686248025,-150.0,0.00016695,2]
[399804594,1766686248036,-595.37131296,0.00016697,2]
[399804595,1766686248047,-150.0,0.00016698,2]
[399804596,1766686248057,-1000.0,0.000167,2]
[399804597,1766686248070,-150.0,0.00016703,2]
[399804598,1766686248080,-150.0,0.00016707,2]
[399804599,1766686248091,-150.0,0.00016708,2]
[399804600,1766686248101,-150.0,0.0001671,2]
[399804601,1766686248111,-175.53875056,0.00016712,2]
[399804602,1766686248121,-150.0,0.00016718,2]
[399804603,1766686248131,-150.0,0.00016727,2]
[399804604,1766686248142,-150.0,0.00016727,2]
[399804605,1766686248153,-150.0,0.00016728,2]
[399804606,1766686248163,-1000.0,0.00016728,2]
[399804607,1766686248173,-175.53875056,0.00016729,2]
[399804608,1766686248183,-1000.0,0.0001673,2]
[399804609,1766686248194,-1000.0,0.00016731,2]
[399804610,1766686248204,-308.61264672,0.00016731,2]
[399804611,1766686248215,-500.0,0.00016731,2]
[399804612,1766686248224,-500.0,0.00016731,2]
[399804613,1766686248234,-500.0,0.00016731,2]
[399804614,1766686248245,-500.0,0.00016731,2]
[399804615,1766686248255,-559.28446362,0.00016731,2]
[399804616,1766686248266,-598.60555363,0.00016731,2]
[399804617,1766686248276,-500.0,0.00016731,2]
[399804618,1766686248286,-207.3850141,0.00016731,2]
[399804619,1766686248296,-500.0,0.00016731,2]
[399804620,1766686248306,-500.0,0.00016731,2]
[399804621,1766686248316,-500.0,0.00016731,2]
[399804622,1766686248325,-500.0,0.00016731,2]
[399804623,1766686248336,-500.0,0.00016731,2]
[399804624,1766686248346,-500.0,0.00016731,2]
[399804625,1766686248356,-500.0,0.00016731,2]
[399804626,1766686248367,-500.0,0.00016731,2]
[399804627,1766686248377,-500.0,0.00016731,2]
[399804628,1766686248388,-500.0,0.00016731,2]
[399804629,1766686248398,-150.0,0.00016732,2]
[399804630,1766686248409,-150.0,0.00016739,2]
[399804631,1766686248420,-300.0,0.00016741,2]
[399804632,1766686248431,-150.0,0.00016744,2]
[399804633,1766686248441,-175.53875056,0.00016746,2]
[399804634,1766686248452,-150.0,0.00016746,2]
[399804635,1766686248463,-150.0,0.0001675,2]
[399804636,1766686248474,-150.0,0.0001675,2]
[399804637,1766686248485,-150.0,0.00016753,2]
[399804638,1766686248496,-150.0,0.00016756,2]
[399804639,1766686248507,-1000.0,0.00016759,2]
[399804640,1766686248517,-150.0,0.0001676,2]
[399804641,1766686248528,-175.53875056,0.00016763,2]
[399804642,1766686248539,-150.0,0.00016765,2]
[399804643,1766686248548,-150.0,0.00016766,2]
[399804644,1766686248559,-150.0,0.0001677,2]
[399804645,1766686248570,-150.0,0.00016774,2]
[399804646,1766686248580,-1055.0,0.00016777,2]
[399804647,1766686248590,-175.53875056,0.0001678,2]
[399804648,1766686248600,-1178.96939853,0.00016783,2]
[399804649,1766686248612,-150.0,0.00016785,2]
[399804650,1766686248624,-150.0,0.00016786,2]
[399804651,1766686248635,-150.0,0.00016791,2]
[399804652,1766686248644,-150.0,0.00016792,2]
[399804653,1766686248655,-150.0,0.00016795,2]
[399804654,1766686248664,-175.53875056,0.00016798,2]
[399804655,1766686248674,-150.0,0.00016801,2]
[399804656,1766686248685,-150.0,0.00016802,2]
[399804657,1766686248695,-150.0,0.00016805,2]
[399804658,1766686248706,-1000.0,0.00016805,2]
[399804659,1766686248716,-150.0,0.00016806,2]
[399804660,1766686248726,-150.0,0.00016807,2]
[399804661,1766686248736,-1000.0,0.00016808,2]
[399804662,1766686248746,-150.0,0.0001681,2]
[399804663,1766686248756,-150.0,0.00016814,2]
[399804664,1766686248767,-175.53875056,0.00016815,2]
[399804665,1766686248777,-150.0,0.00016816,2]
[399804666,1766686248787,-150.0,0.00016822,2]
[399804667,1766686248798,-150.0,0.00016826,2]
[399804668,1766686248808,-926.45060488,0.0001683,2]
[399804669,1766686248819,-150.0,0.00016832,2]
[399804670,1766686248829,-175.53875056,0.00016832,2]
[399804671,1766686248840,-300.0,0.00016835,2]
[399804672,1766686248851,-300.0,0.00016835,2]
[399804673,1766686248861,-150.0,0.00016838,2]
[399804674,1766686248872,-150.0,0.00016839,2]
[399804675,1766686248882,-150.0,0.00016841,2]
[399804676,1766686248892,-1000.0,0.00016841,2]
[399804677,1766686248903,-1178.96939851,0.00016842,2]
[399804678,1766686248914,-150.0,0.00016842,2]
[399804679,1766686248924,-160.79787959,0.00016843,2]
[399804680,1766686248934,-150.0,0.00016845,2]
[399804681,1766686248944,-150.0,0.00016846,2]
[399804682,1766686248954,-150.0,0.00016849,2]
[399804683,1766686248965,-175.53875056,0.00016849,2]
[399804684,1766686248976,-150.0,0.00016854,2]
[399804685,1766686248987,-188.55950753,0.00016855,2]
[399804686,1766686248997,-1000.0,0.00016857,2]
[399804687,1766686249008,-150.0,0.00016859,2]
[399804688,1766686249019,-150.0,0.00016863,2]
[399804689,1766686249030,-300.0,0.00016864,2]
[399804690,1766686249040,-200.0,0.00016864,2]
[399804691,1766686249051,-175.53875056,0.00016866,2]
[399804692,1766686249063,-150.0,0.00016866,2]
[399804693,1766686249074,-150.0,0.00016871,2]
[399804694,1766686249085,-150.0,0.00016873,2]
[399804695,1766686249095,-150.0,0.00016873,2]
[399804696,1766686249106,-25000.0,0.00016874,3]
[399804697,1766686249116,-150.0,0.00016876,2]
[399804698,1766686249126,-2000.0,0.0001688,2]
[399804699,1766686249136,-2000.0,0.0001688,2]
[399804700,1766686249146,-2000.0,0.0001688,2]
[399804701,1766686249156,-2000.0,0.0001688,2]
[399804702,1766686249166,-2000.0,0.0001688,2]
[399804703,1766686249176,-2000.0,0.0001688,2]
[399804704,1766686249186,-1000.0,0.0001688,2]
[399804705,1766686249196,-1000.0,0.0001688,2]
[399804706,1766686249207,-1000.0,0.0001688,2]
[399804707,1766686249217,-1000.0,0.0001688,2]
[399804708,1766686249227,-1000.0,0.0001688,2]
[399804709,1766686249237,-1000.0,0.0001688,2]
[399804710,1766686249248,-1000.0,0.0001688,2]
[399804711,1766686249258,-1000.0,0.0001688,2]
[399804712,1766686249269,-1000.0,0.0001688,2]
[399804713,1766686249280,-1000.0,0.0001688,2]
[399804714,1766686249290,-1000.0,0.0001688,2]
[399804715,1766686249300,-1000.0,0.0001688,2]
[399804716,1766686249310,-1000.0,0.0001688,2]
[399804717,1766686249320,-347.511,0.0001688,2]
[399804718,1766686249332,-150.0,0.0001688,2]
[399804719,1766686249342,-25000.0,0.00016882,3]
[399804720,1766686249352,-175.53875056,0.00016883,2]
[399804721,1766686249362,-300.0,0.00016886,2]
[399804722,1766686249372,-150.0,0.00016886,2]
[399804723,1766686249383,-1000.0,0.00016889,2]
[399804724,1766686249393,-1000.0,0.00016889,2]
[399804725,1766686249404,-1000.0,0.00016889,2]
[399804726,1766686249414,-1000.0,0.00016889,2]
[399804727,1766686249424,-1000.0,0.00016889,2]
[399804728,1766686249435,-1000.0,0.00016889,2]
[399804729,1766686249445,-916.272,0.00016889,2]
[399804730,1766686249456,-150.0,0.00016889,2]
[399804731,1766686249467,-150.0,0.00016891,2]
[399804732,1766686249477,-25000.0,0.00016891,3]
[399804733,1766686249488,-150.0,0.00016894,2]
[399804734,1766686249499,-1000.0,0.00016895,2]
[399804735,1766686249509,-150.0,0.00016897,2]
[399804736,1766686249520,-1000.0,0.00016897,2]
[399804737,1766686249530,-1000.0,0.00016899,2]
[399804738,1766686249540,-500.0,0.00016899,2]
[399804739,1766686249550,-536.56,0.00016899,2]
[399804740,1766686249559,-1627.68,0.00016899,2]
[399804741,1766686249570,-150.0,0.000169,2]
[399804742,1766686249580,-710.27818474,0.000169,2]
[399804743,1766686249590,-10000.0,0.000169,2]
[399804744,1766686249601,-25000.0,0.000169,3]
[399804745,1766686249614,-170.28248417,0.000169,2]
[399804746,1766686249624,-10147.35490038,0.000169,2]
[399804747,1766686249634,-1926.43051864,0.000169,3]
[399804748,1766686249644,-13041.22601008,0.000169,2]
[399804749,1766686249655,-4210.01963503,0.000169,2]
[399804750,1766686249666,-1000.0,0.000169,2]
[399804751,1766686249675,-323.90940022,0.000169,2]
[399804752,1766686249687,-1178.96939851,0.000169,2]
[399804753,1766686249698,-11689.0,0.000169,2]
[399804754,1766686249708,-175.53875056,0.00016901,2]
[399804755,1766686249718,-150.0,0.00016901,2]
[399804756,1766686249729,-150.0,0.00016906,2]
[399804757,1766686249740,-1040.65765088,0.00016907,2]
[399804758,1766686249751,-150.0,0.00016912,2]
[399804759,1766686249762,-150.0,0.00016913,2]
[399804760,1766686249772,-1055.0,0.00016914,2]
[399804761,1766686249782,-300.0,0.00016915,2]
[399804762,1766686249793,-175.53875056,0.00016918,2]
[399804763,1766686249805,-150.0,0.00016922,2]
[399804764,1766686249815,-150.0,0.00016923,2]
[399804765,1766686249826,-150.0,0.00016925,2]
[399804766,1766686249835,-300.0,0.00016925,2]
[399804767,1766686249932,-150.0,0.00016926,2]
[399804768,1766686249943,-1000.0,0.00016927,2]
[399804769,1766686249954,-150.0,0.00016929,2]
[399804770,1766686249964,-300.0,0.00016933,2]
[399804771,1766686249974,-1000.0,0.00016934,2]
[399804772,1766686249983,-175.53875056,0.00016935,2]
[399804773,1766686249993,-150.0,0.00016937,2]
[399804774,1766686250003,-150.0,0.00016938,2]
[399804775,1766686250013,-150.0,0.00016944,2]
[399804776,1766686250023,-150.0,0.00016946,2]
[399804777,1766686250032,-150.0,0.00016949,2]
[399804778,1766686250042,-300.0,0.0001695,2]
[399804779,1766686250052,-175.53875056,0.00016952,2]
[399804780,1766686250062,-150.0,0.00016953,2]
[399804781,1766686250072,-150.0,0.00016955,2]
[399804782,1766686250083,-150.0,0.00016958,2]
[399804783,1766686250093,-3899.0,0.00016959,2]
[399804784,1766686250103,-1000.0,0.00016961,2]
[399804785,1766686250112,-1055.0,0.00016962,2]
[399804786,1766686250122,-237.0,0.00016965,2]
[399804787,1766686250132,-150.0,0.00016965,2]
[399804788,1766686250142,-150.0,0.00016966,2]
[399804789,1766686250151,-175.53875056,0.00016969,2]
[399804790,1766686250161,-500.0,0.0001697,2]
[399804791,1766686250172,-500.0,0.0001697,2]
[399804792,1766686250182,-800.78551976,0.0001697,2]
[399804793,1766686250192,-500.0,0.00016973,2]
[399804794,1766686250201,-150.0,0.00016973,2]
[399804795,1766686250211,-300.0,0.00016978,2]
[399804796,1766686250221,-505.30351694,0.00016983,2]
[399804797,1766686250231,-150.0,0.00016985,2]
[399804798,1766686250242,-199.93327437,0.00016986,2]
[399804799,1766686250253,-159.80056787,0.00016986,2]
[399804800,1766686250263,-254.60367392,0.00016986,2]
[399804801,1766686250274,-171.10828189,0.00016986,2]
[399804802,1766686250283,-121549.19,0.00016986,2]
[399804803,1766686250292,-199.77046781,0.00016986,2]
[399804804,1766686250303,-221.88950026,0.00016986,2]
[399804805,1766686250313,-298.55759469,0.00016986,2]
[399804806,1766686250322,-250.03401256,0.00016986,2]
[399804807,1766686250332,-175.53875056,0.00016986,2]
[399804808,1766686250343,-245.69368063,0.00016986,2]
[399804809,1766686250353,-270.36367615,0.00016986,2]
[399804810,1766686250363,-284.4666085,0.00016986,2]
[399804811,1766686250373,-300.0,0.00016988,2]
[399804812,1766686250383,-150.0,0.00016989,2]
[399804813,1766686250393,-2046.89296055,0.0001699,2]
[399804814,1766686250403,-2046.89296055,0.0001699,2]
[399804815,1766686250412,-150.0,0.00016994,2]
[399804816,1766686250422,-536.56,0.00016998,2]
[399804817,1766686250432,-1627.68,0.00016998,2]
[399804818,1766686250442,-1627.68,0.00016998,2]
[399804819,1766686250452,-1060.87558749,0.00016999,5]
[399804820,1766686250463,-402156.8702837,0.00016999,2]
[399804821,1766686250473,-4083.7232226,0.00016999,2]
[399804822,1766686250483,-5591.2369544,0.00016999,2]
[399804823,1766686250493,-247.95426785,0.00016999,2]
[399804824,1766686250502,-5510.1931767,0.00016999,2]
[399804825,1766686250512,-2573.8660557,0.00016999,2]
[399804826,1766686250521,-73165.9018861,0.00016999,2]
[399804827,1766686250530,-300.0,0.00016999,2]
[399804828,1766686250539,-6454.3342082,0.00016999,2]
[399804829,1766686250549,-666.0,0.00016999,2]
[399804830,1766686250559,-300.0,0.00016999,2]
[399804831,1766686250570,-831.3088678,0.00016999,2]
[399804832,1766686250580,-1616.8045569,0.00016999,2]
[399804833,1766686250590,-300.0,0.00016999,2]
[399804834,1766686250599,-666.0,0.00016999,2]
[399804835,1766686250609,-536.56,0.00016999,2]
[399804836,1766686250619,-536.56,0.00016999,2]
[399804837,1766686250631,-536.56,0.00016999,2]
[399804838,1766686250641,-536.56,0.00016999,2]
[399804839,1766686250651,-536.56,0.00016999,2]
[399804840,1766686250661,-536.56,0.00016999,2]
[399804841,1766686250672,-536.56,0.00016999,2]
[399804842,1766686250681,-536.56,0.00016999,2]
[399804843,1766686250691,-536.56,0.00016999,2]
[399804844,1766686250702,-536.56,0.00016999,2]
[399804845,1766686250712,-536.56,0.00016999,2]
[399804846,1766686250722,-536.56,0.00016999,2]
[399804847,1766686250732,-536.56,0.00016999,2]
[399804848,1766686250742,-536.56,0.00016999,2]
[399804849,1766686250752,-536.56,0.00016999,2]
[399804850,1766686250762,-536.56,0.00016999,2]
[399804851,1766686250772,-536.67167877,0.00016999,2]
[399804852,1766686250782,-1627.68,0.00016999,2]
[399804853,1766686250792,-1627.68,0.00016999,2]
[399804854,1766686250801,-1627.68,0.00016999,2]
[399804855,1766686250811,-1627.68,0.00016999,2]
[399804856,1766686250821,-1627.68,0.00016999,2]
[399804857,1766686250831,-1627.68,0.00016999,2]
[399804858,1766686250840,-1627.68,0.00016999,2]
[399804859,1766686250851,-1627.68,0.00016999,2]
[399804860,1766686250860,-1627.68,0.00016999,2]
[399804861,1766686250870,-1627.68,0.00016999,2]
[399804862,1766686250881,-1627.68,0.00016999,2]
[399804863,1766686250890,-1627.68,0.00016999,2]
[399804864,1766686250900,-1627.68,0.00016999,2]
[399804865,1766686250910,-1627.68,0.00016999,2]
[399804866,1766686250919,-1627.69545808,0.00016999,2]
[399804867,1766686250929,-2618976.44704987,0.00017,2]
[399804868,1766686251354,-2919.09164166,0.00017,2]
[399804869,1766686251895,-200.0,0.00014252,2]
[399804870,1766686251905,-1125.45,0.00016059,2]
[399804871,1766686251918,-3410.51349519,0.00016059,2]
[399804872,1766686251940,-254.39513532,0.00016059,2]
[399804873,1766686251952,-16.64136949,0.00016059,2]
[399804874,1766686251963,-820.35386575,0.00017,2]
[399804875,1766686252086,-423.95581672,0.00017,2]
[399804876,1766686252706,-3159.93703545,0.00015809,2]
[399804877,1766686252728,-778.86652638,0.00015809,2]
[399804878,1766686252763,-9149.55824451,0.00015809,2]
[399804879,1766686252774,-31255.3965441,0.00017,2]
[399804880,1766686252786,-9057.77585375,0.00017,2]
[399804881,1766686252844,-308.93545843,0.00017,2]
[399804882,1766686252860,-36643.84372399,0.00017,2]
[399804894,1766687037385,657.77,6.999e-05,2]
[399804895,1766687037568,657.77,7.368e-05,2]
[399804896,1766687037767,657.77,7.736e-05,2]
[399804897,1766687037981,657.77,8.104e-05,2]
[399804898,1766687038194,657.77,8.473e-05,2]
[399804899,1766687038409,657.77,8.841e-05,2]
[399804900,1766687038617,657.77,9.209e-05,2]
[399804901,1766687038803,657.77,9.578e-05,2]
[399804902,1766687038995,657.77,9.946e-05,2]
[399804903,1766687039633,657.77,0.00010315,2]
[399804904,1766687039679,657.77,0.00010683,2]
[399804905,1766687039729,657.77,0.00011051,2]
[399804906,1766687039779,657.77,0.0001142,2]
[399804907,1766687040071,657.77,0.00011788,2]
[399804908,1766687047237,-178.59172359,0.00012157,2]
[399804909,1766687049833,-195.0,0.00012157,2]
[399804911,1766687113691,377.04502597,0.000121,30]
[399804913,1766687138378,-161.53292789,0.00012157,2]
[399804914,1766687140871,-122.64534852,0.00012157,2]
[399804915,1766687140894,-139.46087238,0.00012341,2]
[399804916,1766687171643,164.57901463,0.0003013,120]
[399804917,1766687196167,500.0,0.00032876,120]
[399804918,1766687197913,-160.53912762,0.00012341,2]
[399804919,1766687197938,-53.75654688,0.00012369,2]
[399804920,1766687218860,195.5668555,0.0003013,120]
[399804921,1766687251814,600.0,0.00032876,120]
[399804922,1766687253450,600.0,0.00032876,120]
[399804923,1766687254574,399.99,0.00032876,120]
[399804925,1766687259589,183.78113358,0.000328,120]
[399804927,1766687302329,-112.90345312,0.00012369,2]
[399804928,1766687302353,-339.747385,0.00012525,2]
[399804929,1766687303878,-317.14084097,0.00012525,2]
[399804932,1766687318584,191.89356113,0.00031,120]
[399804941,1766687431499,-0.88177403,0.00012525,2]
[399804943,1766687431511,-166.66,0.0001263,2]
[399804945,1766687431522,-136.09564064,0.00012857,2]
[399804974,1766687432015,-31.04520033,0.00012857,2]
[399804976,1766687432026,-766.38,0.00012866,2]
[399804978,1766687432036,-166.66,0.0001289,2]
[399804981,1766687432046,-657.77,0.00012893,2]
[399804983,1766687432060,-197.28876403,0.00012969,2]
[399804985,1766687432070,-1200.0,0.00013069,2]
[399804987,1766687432079,-3146.13616002,0.0001307,2]
[399804993,1766687432126,-345.51780687,0.0001307,2]
[399804996,1766687432152,-4759.5226014,0.0001307,2]
[399804998,1766687432162,-166.66,0.0001315,2]
[399805000,1766687432172,-197.28876401,0.00013215,2]
[399805002,1766687432182,-657.77,0.00013262,2]
[399805004,1766687432193,-5273.689,0.00013387,2]
[399805006,1766687432203,-330.432,0.00013387,2]
[399805008,1766687432213,-166.66,0.00013411,2]
[399805010,1766687432222,-6048.83604075,0.00013459,2]
[399805014,1766687432250,-2535.48197541,0.00013459,2]
[399805016,1766687432262,-3384.25437168,0.00013459,2]
[399805018,1766687432276,-642.45112104,0.00013459,2]
[399805020,1766687432286,-150.0,0.00013459,2]
[399805022,1766687432296,-449.08410018,0.00013459,2]
[399805024,1766687432308,-21.42462016,0.00013459,2]
[399805026,1766687432319,-197.28876401,0.0001346,2]
[399805028,1766687432330,-2019.70636785,0.0001346,2]
[399805030,1766687432342,-3528.14577167,0.0001346,2]
[399805048,1766687437610,-539.93551002,0.0001346,2]
[399805051,1766687437650,-86689.99999994,0.0001346,2]
[399805052,1766687437760,-871.06,0.0001346,2]
[399805053,1766687437816,-2553.98606414,0.0001346,2]
[399805069,1766687439646,-433.46560019,0.0001346,2]
[399805070,1766687439659,-324.91398056,0.0001346,2]
[399805071,1766687439810,-903038.78670563,0.0001346,2]
[399805072,1766687439820,-894.91811465,0.00013559,2]
[399805073,1766687439830,-500.0,0.00013559,2]
[399805074,1766687439839,-500.0,0.00013559,2]
[399805075,1766687439848,-500.0,0.00013559,2]
[399805076,1766687439858,-206.43790948,0.00013559,2]
[399805077,1766687439867,-521.55720501,0.0001356,2]
[399805078,1766687439877,-150.0,0.0001356,2]
[399805079,1766687439887,-15645.58578973,0.0001356,2]
[399805080,1766687439896,-7895.8822,0.0001356,2]
[399805081,1766687439906,-2500.0,0.0001356,2]
[399805082,1766687439915,-657.77,0.0001363,2]
[399805083,1766687439925,-207.4,0.00013652,2]
[399805084,1766687439935,-151.0,0.00013652,2]
[399805085,1766687439945,-151.0,0.00013652,2]
[399805086,1766687439954,-151.0,0.00013652,2]
[399805087,1766687439965,-151.0,0.00013652,2]
[399805088,1766687439975,-151.0,0.00013652,2]
[399805090,1766687439985,-151.0,0.00013652,2]
[399805092,1766687439995,-151.0,0.00013652,2]
[399805094,1766687440004,-151.0,0.00013652,2]
[399805095,1766687440013,-151.0,0.00013652,2]
[399805096,1766687440023,-151.0,0.00013652,2]
[399805097,1766687440033,-151.0,0.00013652,2]
[399805098,1766687440043,-151.0,0.00013652,2]
[399805099,1766687440052,-151.0,0.00013652,2]
[399805100,1766687440062,-151.0,0.00013652,2]
[399805101,1766687440072,-151.0,0.00013652,2]
[399805102,1766687440082,-151.0,0.00013652,2]
[399805103,1766687440092,-151.0,0.00013652,2]
[399805104,1766687440102,-151.0,0.00013652,2]
[399805105,1766687440112,-151.0,0.00013652,2]
[399805106,1766687440122,-151.0,0.00013652,2]
[399805107,1766687440132,-151.0,0.00013652,2]
[399805108,1766687440141,-151.0,0.00013652,2]
[399805109,1766687440151,-151.0,0.00013657,2]
[399805110,1766687440160,-1000.0,0.0001366,2]
[399805111,1766687440170,-500.0,0.0001366,2]
[399805112,1766687440180,-166.66,0.00013671,2]
[399805113,1766687440190,-500.0,0.00013698,2]
[399805114,1766687440199,-500.0,0.00013698,2]
[399805115,1766687440209,-534.85503183,0.00013698,2]
[399805116,1766687440218,-500.0,0.00013698,2]
[399805117,1766687440228,-500.0,0.00013698,2]
[399805118,1766687440238,-500.0,0.00013698,2]
[399805119,1766687440248,-500.0,0.00013698,2]
[399805120,1766687440258,-500.0,0.00013698,2]
[399805121,1766687440268,-500.0,0.00013698,2]
[399805122,1766687440283,-500.0,0.00013698,2]
[399805123,1766687440293,-500.0,0.00013698,2]
[399805124,1766687440303,-500.0,0.00013698,2]
[399805125,1766687440315,-500.0,0.00013698,2]
[399805126,1766687440325,-500.0,0.00013698,2]
[399805127,1766687440334,-500.0,0.00013698,2]
[399805128,1766687440343,-500.0,0.00013698,2]
[399805129,1766687440355,-370.97583972,0.00013698,2]
[399805130,1766687440365,-500.0,0.00013698,2]
[399805131,1766687440375,-500.0,0.00013698,2]
[399805132,1766687440385,-500.0,0.00013698,2]
[399805133,1766687440394,-604.31886581,0.00013698,2]
[399805134,1766687440404,-820.73,0.00013698,2]
[399805135,1766687440414,-500.0,0.00013698,2]
[399805136,1766687440423,-500.0,0.00013698,2]
[399805137,1766687440433,-500.0,0.00013698,2]
[399805138,1766687440443,-500.0,0.00013698,2]
[399805139,1766687440453,-500.0,0.00013698,2]
[399805140,1766687440463,-500.0,0.00013698,2]
[399805141,1766687440473,-500.0,0.00013698,2]
[399805142,1766687440483,-500.0,0.00013698,2]
[399805143,1766687440493,-536.56,0.00013698,2]
[399805144,1766687440503,-536.56,0.00013698,2]
[399805145,1766687440513,-536.56,0.00013698,2]
[399805146,1766687440522,-536.56,0.00013698,2]
[399805147,1766687440532,-500.0,0.00013698,2]
[399805148,1766687440544,-628.13024647,0.00013698,2]
[399805149,1766687440553,-500.0,0.00013698,2]
[399805150,1766687440563,-500.0,0.00013698,2]
[399805151,1766687440573,-500.0,0.00013698,2]
[399805152,1766687440582,-500.0,0.00013698,2]
[399805153,1766687440592,-500.0,0.00013698,2]
[399805154,1766687440602,-500.0,0.00013698,2]
[399805155,1766687440612,-500.0,0.00013698,2]
[399805156,1766687440622,-500.0,0.00013698,2]
[399805157,1766687440632,-500.0,0.00013698,2]
[399805158,1766687440642,-500.0,0.00013698,2]
[399805159,1766687440651,-500.0,0.00013698,2]
[399805160,1766687440661,-500.0,0.00013698,2]
[399805161,1766687440671,-500.0,0.00013698,2]
[399805162,1766687440681,-1627.68,0.00013698,2]
[399805163,1766687440690,-1627.68,0.00013698,2]
[399805164,1766687440700,-1627.68,0.00013698,2]
[399805165,1766687440711,-1627.68,0.00013698,2]
[399805166,1766687440721,-300.0,0.00013777,2]
[399805167,1766687440731,-300.0,0.00013777,2]
[399805168,1766687440741,-195.0,0.00013777,2]
[399805169,1766687440751,-600.0,0.00013777,2]
[399805170,1766687440761,-600.0,0.00013777,2]
[399805171,1766687440770,-600.0,0.00013777,2]
[399805172,1766687440779,-452.64495973,0.00013777,2]
[399805173,1766687440789,-195.0,0.00013777,2]
[399805174,1766687440799,-11968.5723878,0.00013841,2]
[399805175,1766687440809,-284.6376144,0.00013926,2]
[399805176,1766687440818,-15645.58578967,0.00013931,2]
[399805177,1766687440827,-449.01852355,0.00013934,2]
[399805178,1766687440836,-470.50872028,0.00013951,2]
[399805179,1766687440846,-500.0,0.00013959,2]
[399805180,1766687440855,-500.0,0.00013959,2]
[399805181,1766687440865,-500.0,0.00013959,2]
[399805182,1766687440875,-500.0,0.00013959,2]
[399805183,1766687440884,-500.0,0.00013959,2]
[399805184,1766687440893,-500.0,0.00013959,2]
[399805185,1766687440902,-507.55739974,0.00013959,2]
[399805186,1766687440912,-820.73,0.00013972,2]
[399805187,1766687440922,-3166.8,0.00013982,2]
[399805188,1766687440931,-657.77,0.00013998,2]
[399805189,1766687440941,-500.0,0.00014,2]
[399805190,1766687440950,-521.55720495,0.00014117,2]
[399805191,1766687440960,-162.481345,0.000142,2]
[399805192,1766687440970,-11968.5723878,0.00014224,2]
[399805193,1766687440979,-820.73,0.00014246,2]
[399805194,1766687440989,-15645.58578967,0.00014302,2]
[399805195,1766687440999,-210.18757024,0.00014339,2]
[399805196,1766687441009,-1680.0,0.00014376,2]
[399805197,1766687441019,-470.50872028,0.00014442,2]
[399805198,1766687441030,-518.25873216,0.00014458,2]
[399805199,1766687441039,-2046.89296055,0.00014494,2]
[399805200,1766687441049,-733.92,0.00014504,2]
[399805201,1766687441060,-9999.99,0.00014504,2]
[399805202,1766687441070,-12451.27,0.00014504,2]
[399805203,1766687441080,-150.99,0.00014504,2]
[399805204,1766687441090,-150.99,0.00014504,2]
[399805205,1766687441099,-6622.53,0.00014504,2]
[399805206,1766687441109,-27978.45,0.00014504,2]
[399805207,1766687441119,-9999.99,0.00014504,2]
[399805208,1766687441129,-820.73,0.0001452,2]
[399805209,1766687441139,-500.0,0.00014551,2]
[399805210,1766687441149,-255.0,0.00014576,2]
[399805211,1766687441159,-11968.5723878,0.00014606,2]
[399805212,1766687441169,-500.0,0.00014658,2]
[399805213,1766687441179,-521.55720495,0.00014673,2]
[399805214,1766687441189,-15645.58578967,0.00014673,2]
[399805215,1766687441198,-642.45112104,0.0001468,2]